Cogmind - Beta 15 @@@ ROGUE MODE // 2025.07.13 @ 04:40:55 Player: Ourotelos Result: Destroyed by as-83438 with Assembled Maul Performance ------------- Evolutions (1) 500 Regions Visited (4) 800 Robots Destroyed (14) 70 Value Destroyed (317) 317 Prototype IDs (0) 0 Alien Tech Used (0) 0 Bonus (14) 14 TOTAL SCORE: 1701 Bonus ------- Follower Combat Kills 14 Cogmind --------- Core Integrity 0/400 Matter 242/300 Energy 100/100 System Corruption 0% Temperature Cool (0) Movement Core (100) Ox1 Location -9/Mines Parts ------- > --- POWER (1) -------- (None) > --- PROPULSION (4) --- (None) > --- UTILITY (2) ------ Small Storage Unit > --- WEAPON (2) ------- (None) > --- INVENTORY (8) ---- Light Assault Rifle Light Cannon Mining Laser Hammer Peak State ------------ > --- POWER ------------ Light Ion Engine > --- PROPULSION ------- Light Treads Light Treads > --- UTILITY ---------- Small Storage Unit Improved Terrain Scanner > --- WEAPON ----------- Light Assault Rifle Light Assault Rifle > --- INVENTORY -------- Ion Engine Light Ion Engine Wheel Compact Wheel Assault Rifle Assault Rifle Light Cannon Hammer [Rating: 9] Favorites ----------- Power Light Ion Engine Engine Light Ion Engine Propulsion Light Treads Treads Light Treads Wheel Compact Wheel Utility Small Storage Unit Device Improved Terrain Scanner Storage Small Storage Unit Weapon Assault Rifle Ballistic Gun Assault Rifle Ballistic Cannon Light Cannon Build | -11 -10 -10 -9 -9 ------- Run | Yrd Mat Min Mat Min Slots Evolved 2 | . . . 2 . Power . | . . . . . Propulsion 2 | . . . 2 . Utility . | . . . . . Weapon . | . . . . . Parts Attached 14 | 6 . 7 . 1 Power 3 | 1 . 1 . 1 Engine 3 | 1 . 1 . 1 Core . | . . . . . Reactor . | . . . . . Propulsion 4 | 2 . 2 . . Treads 2 | 2 . . . . Leg . | . . . . . Wheel 2 | . . 2 . . Hover . | . . . . . Flight . | . . . . . Utility 2 | 1 . 1 . . Device 1 | . . 1 . . Storage 1 | 1 . . . . Processor . | . . . . . Hackware . | . . . . . Protection . | . . . . . Artifact . | . . . . . Weapon 5 | 2 . 3 . . Energy Gun . | . . . . . Energy Cannon . | . . . . . Ballistic Gun 4 | 2 . 2 . . Ballistic Cannon 1 | . . 1 . . Launcher . | . . . . . Special Weapon . | . . . . . Impact Weapon . | . . . . . Slashing Weapon . | . . . . . Piercing Weapon . | . . . . . Special Melee Weapon . | . . . . . Unidentified Prototypes . | . . . . . Parts Lost 9 | . . 2 1 6 Power 3 | . . 1 1 1 Propulsion 3 | . . 1 . 2 Utility 1 | . . . . 1 Weapon 2 | . . . . 2 Highest Loss Streak 4 | . . 2 1 4 To Critical Strikes . | . . . . . Average Backups 5 | 2 6 7 5 4 Power 1 | . 1 1 1 . Propulsion 1 | . 2 1 . . Utility . | . . . . . Weapon 3 | . 3 4 4 4 Tool/Special . | . . . . . Unused Backups 3 | . 1 . . 2 Power . | . . . . . Propulsion . | . . . . . Utility . | . . . . . Weapon 3 | . 1 . . 2 Tool/Special . | . . . . . Average Slot Usage (%) 81 | . 85 92 77 49 Engine 12 | . 14 14 11 4 Treads 21 | . 28 24 . . Wheel 3 | . . 2 22 11 Device 3 | . . 8 11 5 Storage 13 | . 14 14 11 11 Ballistic Gun 25 | . 28 26 22 18 Peak Build Rating 9 | 6 6 9 9 8 Average Rating 6 | 4 6 7 8 5 On Entrance 5 | . 6 6 9 8 Naked Turns . | . . . . . Heaviest Build 13 | 12 12 13 11 13 Greatest Support 40 | 40 40 40 26 26 Greatest Overweight (x) 4 | . . . . 4 Average Overweight (x) . | . . . . . Largest Inventory Capacity 8 | 8 8 8 8 8 Average Capacity 7 | 7 8 8 8 8 Most Carried 8 | 4 8 8 5 5 Average Carried 6 | 2 6 7 5 4 Final Capacity 8 | 8 8 8 8 8 Final Carried 8 | 4 8 5 5 4 Class Distribution -------------------- 100% | Mutant Dominant Class ---------------- Mutant | -10/Materials Mutant | -10/Mines Mutant | -9/Materials Mutant | -9/Mines Resources | -11 -10 -10 -9 -9 ----------- Run | Yrd Mat Min Mat Min Matter Collected 488 | 215 135 138 . . Remotely . | . . . . . Salvage Created 361 | . 171 136 41 13 Parts 30 | . 10 14 6 . Haulers Intercepted . | . . . . . Recyclers Shooed . | . . . . . Parts Field Recycled . | . . . . . Retrieved Matter . | . . . . . Parts Self-Destructed . | . . . . . Prevented . | . . . . . Kills | -11 -10 -10 -9 -9 ------- Run | Yrd Mat Min Mat Min Combat Hostiles Destroyed 13 | . 4 5 3 1 Guns 11 | . 4 3 3 1 Cannons 2 | . . 2 . . Classes Destroyed 3 | . 1 2 . . Tunneler 1 | . . 1 . . Swarmer 7 | . . 3 3 1 Grunt 6 | . 4 2 . . Best Kill Streak 3 | . 2 3 3 1 Combat Bots Only 3 | . 2 3 3 1 Max Kills in Single Turn 1 | . 1 1 1 1 Gunslinging . | . . . . . Exploded . | . . . . . Melee . | . . . . . Uniques/NPCs Destroyed . | . . . . . Combat | -11 -10 -10 -9 -9 -------- Run | Yrd Mat Min Mat Min Hostile Shots Fired 151 | . 25 57 30 39 Missed 41 | . 4 20 9 8 Hits 110 | . 21 37 21 31 Melee 3 | . . . . 3 Projectile 107 | . 21 37 21 28 AOE 9 | . . . . 9 Critical Strikes 1 | . . 1 . . Damage Taken 1420 | . 261 397 175 587 Core 536 | . 22 112 34 368 Absorbed by Shields . | . . . . . Core Remaining (%) 73 | 100 . 46 . . Volleys Fired 62 | . 20 30 7 5 Largest 2 | . 2 2 2 2 Hottest 50 | . 40 50 40 40 Shots Fired 121 | . 40 57 14 10 Gun 112 | . 40 48 14 10 Cannon 9 | . . 9 . . Launcher . | . . . . . Special . | . . . . . Kinetic 121 | . 40 57 14 10 Thermal . | . . . . . Explosive . | . . . . . Electromagnetic . | . . . . . Robot Hit Streak 10 | . 5 10 3 3 Robot Miss Streak 8 | . 4 8 5 8 Penetration Max . | . . . . . Secondary Targets 2 | . . . 2 . Max Gunslinging Chain 1 | . . . 1 . Shots Hit Robots 67 | . 23 35 6 3 Core Hits 32 | . 9 14 4 5 Critical Kills . | . . . . . Critical Parts Destroyed . | . . . . . Critical Strikes . | . . . . . Melee Attacks . | . . . . . Impact . | . . . . . Slashing . | . . . . . Piercing . | . . . . . Sneak Attacks . | . . . . . Combat Hostiles . | . . . . . Follow-up Attacks . | . . . . . Damage Inflicted 718 | . 290 335 52 41 Guns 669 | . 290 297 52 30 Cannons 38 | . . 38 . . Explosions . | . . . . . Melee . | . . . . . Ramming 11 | . . . . 11 Kinetic 707 | . 290 335 52 30 Thermal . | . . . . . Explosive . | . . . . . Electromagnetic . | . . . . . Impact . | . . . . . Slashing . | . . . . . Piercing . | . . . . . Highest Corruption . | . . . . . Average Corruption . | . . . . . Corruption Purged . | . . . . . Corruption Blocked . | . . . . . Overload Shots . | . . . . . Overflow Damage . | . . . . . Projectiles . | . . . . . Explosions . | . . . . . Melee . | . . . . . Knockbacks . | . . . . . Impact . | . . . . . Kinetic . | . . . . . Secondary . | . . . . . Self-Inflicted Damage 5 | . . . . 5 Shots . | . . . . . Rammed 7 | . . . . 7 Targets Rammed 7 | . . . . 7 Kicked . | . . . . . Crushed . | . . . . . Highest Temperature 48 | . 5 48 7 . Average Temperature 16 | . 2 18 7 . Received Heat Transfer 356 | . 144 177 15 20 Siege Activations . | . . . . . Martial Activations . | . . . . . Shielding Activations . | . . . . . Robots Disrupted . | . . . . . Combat Hostiles . | . . . . . Robots Corrupted . | . . . . . Combat Hostiles . | . . . . . Parts Fried . | . . . . . Impact Corruptions . | . . . . . Robots Melted . | . . . . . Combat Hostiles . | . . . . . Parts Melted . | . . . . . Heat Transferred . | . . . . . Parts Sabotaged . | . . . . . Parts Stolen . | . . . . . Parts Stripped . | . . . . . Power Chain Reactions . | . . . . . Alert | -11 -10 -10 -9 -9 ------- Run | Yrd Mat Min Mat Min Maximum Alert Level . | . . . . . Low Security (%) 100 | 100 100 100 100 100 Level 1 . | . . . . . Level 2 . | . . . . . Level 3 . | . . . . . Level 4 . | . . . . . Level 5 . | . . . . . High Security . | . . . . . Max Security . | . . . . . Peak Influence 85 | . 85 60 66 60 Initial 21 | . . . 11 21 Average 22 | . 27 27 16 18 Influence Increases 424 | . 120 125 75 104 Destroy 0b10 Robot/C 300 | . 80 100 60 60 Destroy 0b10 Robot/NC 5 | . . 5 . . Destroy Leader 50 | . 20 20 . 10 Allied During Kill 4 | . . . . 4 Successful Hack 5 | . 5 . . . Disable Machine 15 | . 15 . . . Lose Combat Pursuer 45 | . . . 15 30 Influence Decreases 414 | . 120 95 49 150 Entered New Map 54 | . . . 19 35 Time Decay 255 | . 120 95 20 20 Lost Part 65 | . . . 10 55 Lost Ally 40 | . . . . 40 Squads Dispatched 1 | . 1 . . . Investigation . | . . . . . Extermination . | . . . . . Reinforcement 1 | . 1 . . . Assault . | . . . . . Garrison . | . . . . . Intercept . | . . . . . Searches Triggered . | . . . . . Construction Impeded . | . . . . . Haulers Reinforced . | . . . . . Active Scanning Responses . | . . . . . Cargo Convoy Interrupts . | . . . . . Stealth | -11 -10 -10 -9 -9 --------- Run | Yrd Mat Min Mat Min Distress Signals 2 | . . . 2 . Communications Jammed . | . . . . . Distress Signals . | . . . . . Times Spotted 40 | . 9 7 8 16 Peak Tracking Total 15 | . 4 3 9 15 Tactical Retreats 2 | . . . 1 1 Traps | -11 -10 -10 -9 -9 ------- Run | Yrd Mat Min Mat Min Traps Triggered . | . . . . . Indirectly . | . . . . . Trap Hack Attempts . | . . . . . Triggered . | . . . . . Disarmed . | . . . . . Reprogrammed . | . . . . . Reused . | . . . . . Traps Extracted . | . . . . . Installed . | . . . . . Triggered . | . . . . . Machines | -11 -10 -10 -9 -9 ---------- Run | Yrd Mat Min Mat Min Machines Disabled 1 | . 1 . . . Max in Single Turn 1 | . 1 . . . Machines Repaired . | . . . . . Machines Dismantled . | . . . . . Machines Sabotaged . | . . . . . Overloaded Fab Kills . | . . . . . Hacking | -11 -10 -10 -9 -9 --------- Run | Yrd Mat Min Mat Min Machines Accessed 1 | . 1 . . . Terminals 1 | . 1 . . . Fabricators . | . . . . . Repair Stations . | . . . . . Recycling Units . | . . . . . Scanalyzers . | . . . . . Garrison Access . | . . . . . Total Hacks 2 | . 2 . . . Successful 2 | . 2 . . . Failed . | . . . . . Catastrophic . | . . . . . Database Lockouts . | . . . . . Manual 2 | . 2 . . . Terminals 2 | . 2 . . . Fabricators . | . . . . . Repair Stations . | . . . . . Recycling Units . | . . . . . Scanalyzers . | . . . . . Garrison Access . | . . . . . Terminal Hacks . | . . . . . Fabricator Hacks . | . . . . . Repair Station Hacks . | . . . . . Recycling Unit Hacks . | . . . . . Scanalyzer . | . . . . . Garrison Access Hacks . | . . . . . Unauthorized Hacks 2 | . 2 . . . Terminals 2 | . 2 . . . Botnet 1 | . 1 . . . Skim 1 | . 1 . . . Fabricators . | . . . . . Repair Stations . | . . . . . Recycling Units . | . . . . . Scanalyzers . | . . . . . Garrison Access . | . . . . . Data Cores Recovered . | . . . . . Used . | . . . . . Hacking Detections 1 | . 1 . . . Full Trace Events . | . . . . . Feedback Events . | . . . . . Feedback Blocked . | . . . . . Robot Schematics Acquired . | . . . . . Robots Built . | . . . . . Authchips . | . . . . . Time . | . . . . . Total Robot Build Rating . | . . . . . Part Schematics Acquired . | . . . . . Parts Built . | . . . . . Authchips . | . . . . . Time . | . . . . . Total Part Build Rating . | . . . . . Parts Repaired . | . . . . . Time . | . . . . . Parts Recycled . | . . . . . Recycled Matter . | . . . . . Retrieved Matter . | . . . . . Retrieved Components . | . . . . . Parts Scanalyzed . | . . . . . Part Schematics Acquired . | . . . . . Parts Damaged . | . . . . . Bothacking | -11 -10 -10 -9 -9 ------------ Run | Yrd Mat Min Mat Min Used RIF Installer . | . . . . . Robots Hacked . | . . . . . Non-combat . | . . . . . Combat . | . . . . . Robot Hacks Applied . | . . . . . Relay Couplers Released . | . . . . . Fabnet Peak Effective % . | . . . . . Robots Rewired . | . . . . . Allies Hacked . | . . . . . Hacks Repelled . | . . . . . Allies | -11 -10 -10 -9 -9 -------- Run | Yrd Mat Min Mat Min Total Allies 2 | . . . . 2 Largest Group 2 | . . . . 2 Highest-Rated Group 42 | . . . . 42 Highest-Rated Ally 31 | . . . . 31 Total Orders . | . . . . . Ally Attacks 11 | . . . . 11 Total Damage 171 | . . . . 171 Kills 2 | . . . . 2 Allies Corrupted . | . . . . . Allies Melted . | . . . . . Intel | -11 -10 -10 -9 -9 ------- Run | Yrd Mat Min Mat Min Active Infowar (turns) 236 | . . 147 50 39 Terrain 236 | . . 147 50 39 Robot Analysis Total . | . . . . . Derelict Logs Recovered 1 | . . . . 1 Drone Launches . | . . . . . Drone Recoveries . | . . . . . Exploration | -11 -10 -10 -9 -9 ------------- Run | Yrd Mat Min Mat Min Turns Passed 891 | 108 412 226 50 95 Spaces Moved 477 | 58 217 95 34 73 Core 13 | 2 . . . 11 Treads 343 | 56 217 70 . . Legs . | . . . . . Wheels 121 | . . 25 34 62 Hover . | . . . . . Flight . | . . . . . Fastest Speed 50 | 50 160 90 90 90 Average Speed 141 | 156 160 141 90 100 Slowest Speed 250 | 160 160 160 90 250 Overloaded Moves . | . . . . . Propulsion Burnouts . | . . . . . Robots Hopped . | . . . . . Potential Cave-ins . | . . . . . Cave-ins Triggered . | . . . . . Exploration Rate (%) 14 | 5 31 17 5 16 Regions Visited 4 Branch Regions 2 Pre-discovered Areas 1 | . . . . 1 Known Exits Taken . | . . . . . Unknown Exits Taken 4 | 1 1 1 1 . Scrap Searched . | . . . . . Spaces Dug . | . . . . . Terrain Destroyed . | . . . . . Melee . | . . . . . Projectile . | . . . . . AOE . | . . . . . Terrain Rammed . | . . . . . Walls Destroyed . | . . . . . Machines Disabled . | . . . . . Actions | -11 -10 -10 -9 -9 --------- Run | Yrd Mat Min Mat Min Total 581 | 76 242 136 41 86 Wait 3 | 3 . . . . Move 473 | 57 216 94 33 73 Hop . | . . . . . Pick Up 16 | 10 5 1 . . Fast Attach 1 | . . 1 . . Attach 10 | 6 . 3 . 1 Detach 1 | . . 1 . . Swap 5 | . . 4 1 . Drop 3 | . 1 2 . . Fire 62 | . 20 30 7 5 Melee . | . . . . . Ram 7 | . . . . 7 Kick . | . . . . . Crush . | . . . . . Escape Stasis . | . . . . . Rewire . | . . . . . Trap . | . . . . . Miscellaneous . | . . . . . Route ------- -11/Scrapyard -10/Materials -10/Mines -9/Materials -9/Mines History --------- Turn | Location | Event 19 | -11/Scrapyard | Discovered new exit (range 15) 109 | -11/Scrapyard | Entered Materials 300 | -10/Materials | Build established: Mutant 360 | -10/Materials | Discovered new exit (range 16) 521 | -10/Materials | Entered Mines 569 | -10/Mines | Met a Derelict bent on vengeance 637 | -10/Mines | Discovered new exit (range 7) 711 | -10/Mines | Core integrity fell below 50% 747 | -10/Mines | Entered Materials 747 | -9/Materials | Evolved 2 slots: Propulsion x2 755 | -9/Materials | Discovered new exit (range 13) 797 | -9/Materials | Entered Mines 798 | -9/Mines | Assembled infested the area 803 | -9/Mines | Assisted by a Guerilla fighting off Assembled 850 | -9/Mines | Learned location of Recycling (-9) 867 | -9/Mines | Lost 3 parts (1p1n1u) 872 | -9/Mines | Core integrity fell below 50% 886 | -9/Mines | Core integrity fell below 20% 892 | -9/Mines | Destroyed by as-83438 with Assembled Maul Last Messages --------------- 00809_ Wheel destroyed. 00814_ S-10 Pest destroyed. 00832_ BJ-B5U(g) destroyed. 00834_ C-30 ARC bursts open, deploying its payload. 00834_ FP-B1X(z) destroyed. 00836_ Imp. Terrain Scanner destroyed. 00850_ Acquired derelict log, extracted data. World map updated: -9/Recycling. 00867_ S-10 Pest destroyed. 00872_ The unstable cave ceiling collapses. 00872_ Com. Wheel destroyed. 00875_ Lgt. Assault Rifle destroyed. 00875_ Assault Rifle destroyed. 00875_ Ion Engine destroyed. 00877_ The unstable cave ceiling collapses. 00886_ Slammed into as-12609. 00887_ Slammed into as-90398. 00891_ Slammed into as-46084. 00892_ Slammed into as-46441. Map ----- +----------------------------------------------------+ | | | | | | | | | | | | | ?????????????????????????????????????????????????? | | ?????????????????????????????????????????????????? | | ?????????????????????????????????????????????????? | | ?????????????????????????????????????????????????? | | ?????????????????????????????????????????????????? | | ?????????????????????????????????????????????????? | | ?????????????????????????????????????????????????? | | ?????????????????????????????????????????????????? | | ?????????????????????????????????????????????????? | | ?????????????????????????????????????????????????? | | ?????????????????????????????????????????????????? | | ?????????????????????????????????????????????????? | | ?????????????????????????????????????????????????? | | ?????????????????????????????????????????????????? | | ????????????????????????###??????????????????????? | | ???????????????????????? a??????????????????????? | | ????????????????????????aa#??????????????????????? | | ????????????????????????#a#??????????????????????? | | ????????????????????????#a#??????????????????????? | | ????????????????????????#@#??????????????????????? | | ???????????????????######a#??????????????????????? | | ???????????????????# aa#??????????????????????? | | ????????????????#??# #####??????????????????????? | | ?????????????####### ######?????????????????????? | | ??????? ### # #?????????????????????? | | ?????? ########??????????????? | | ?????? #??????????????? | | ?????? #??????????????? | | ??????? ######## #### ## ##?#???????????? | | ??????????????????# # # ##??#?????????? | | ??????????????????# ###??????????? | | ??????????????????# # #??????????? | | ??????????????????# [ #??????????? | | ??????????????????## =%! #??????????? | | ???????????????????# # #??????????? | | ???????????????????# ## #?????????? | | ???????????????????# # #### ##?????????? | | ???????????????????#### ####??# #??????????? | | ???????????????????########## ###??????????? | | ???????????????????# #????????????? | | ???????????????????# = ##????????????? | | ???????????????????# ###### % ##?????#? ?????? | | ???????????????????????????# % ####?????#????????? | | ???????????????????????????# ??????????????????? | +----------------------------------------------------+ Best States ------------- Heat Dissipation 28 Energy Generation 10 Energy Capacity 250 Matter Stores 300 Matter Capacity 300 Sight Range 16 Terrain Scan Range 16 Terrain Scan Density 10 Evasion (%) 42 Recoil Reduction 2 Item Schematics ----------------- None Robot Schematics ------------------ None Fabricated ------------ Nothing Repaired ---------- Nothing Alien Tech Used ----------------- None Achievements -------------- None Challenges ------------ None Game ------ Seed MassInertialInterpreter Manual? 0 Play Time 00:15:34 Cumulative 4.5 hours Start 2025.07.13 @ 04:23:53 End 2025.07.13 @ 04:40:55 Sessions 1 Manual Loads 0 Difficulty Rogue Special Mode None Game No. 5 Rogue 3 Adventurer 2 Explorer 0 Win Type - Total 0 Types 0/0/0/0/0/0/0/0/0/0 Lore% 6 Gallery% 7 Achievement% 8 Wizard Run 0 Options --------- Layout 1 ASCII 0 Keyboard 0 Movement Mouse Keybinds 0 Fullscreen 2 Font 32/SmallcapsGlow Map View 50x35 Zoom Use 0% Tactical HUD 1 Map Filters NONE Filters NONE Steam 1 RUN: 9635ddcc-80a7-4fb7-90bc-f19b6f58c8d1